[Event "FRA-ch Youth U18 2018"]
[Site "Agen"]
[Date "2018.04.20"]
[Round "7"]
[White "Milroy, Melena"]
[Black "Lomandong, Noela-Joyce"]
[Result "0-1"]
[ECO "B23"]
[WhiteElo "1718"]
[BlackElo "2053"]
[Annotator "NA"]
[PlyCount "86"]
[EventDate "2018.??.??"]
[EventType "swiss"]
[EventCountry "FRA"]
[SourceTitle "playchess.com"]
[Source "ChessBase"]
[SourceQuality "1"]
[TimeControl "5400+30"]

1. e4 {[%emt 0:00:00]} c5 {[%emt 0:00:03]} 2. Nc3 {[%emt 0:00:00]} g6 {[%emt 0:00:04]} 3. h4 {[%emt 0:02:07]} h6 {[%emt 0:13:44]} 4. h5 {[%emt 0:00:15]} g5 {[%emt 0:01:06]} 5. f4 {[%emt 0:03:49]} gxf4 {[%emt 0:02:33]} 6. d4 {[%emt 0:00:50]} Bg7 {[%emt 0:01:31]} 7. e5 {[%emt 0:00:08]} cxd4 {[%emt 0:02:32]} 8. Qxd4 {[%emt 0:09:02]} Nc6 {[%emt 0:00:52]} 9. Qf2 {[%emt 0:03:49]} Bxe5 {[%emt 0:03:53]} 10. Bxf4 {[%emt 0:00:44]} Qa5 {[%emt 0:06:45]} 11. Bxe5 {[%emt 0:06:05]} Qxe5+ {[%emt 0:00:17]} 12. Be2 {[%emt 0:00:25]} Qd4 {[%emt 0:10:51]} 13. Qxd4 {[%emt 0:03:31]} Nxd4 {[%emt 0:00:02]} 14. O-O-O {[%emt 0:00:07]} Nxe2+ {[%emt 0:00:43]} 15. Ngxe2 {[%emt 0:00:07]} Nf6 {[%emt 0:02:19]} 16. Nf4 {[%emt 0:06:06]} d6 {[%emt 0:07:00]} 17. Nfd5 {[%emt 0:03:51]} Nxd5 {[%emt 0:00:16]} 18. Nxd5 {[%emt 0:00:05]} Kd8 {[%emt 0:00:20]} 19. Rde1 {[%emt 0:03:05]} Be6 {[%emt 0:00:30]} 20. Nf4 {[%emt 0:00:36]} Bf5 {[%emt 0:04:05]} 21. Nd5 {[%emt 0:20:52]} e6 {[%emt 0:07:21]} 22. Ne3 {[%emt 0:06:38]} Be4 {[%emt 0:09:58]} 23. Rhg1 {[%emt 0:02:49]} d5 {[%emt 0:01:03]} 24. Ng4 {[%emt 0:02:15]} Ke7 {[%emt 0:01:41]} 25. Ref1 {[%emt 0:05:11]} Rag8 {[%emt 0:03:41]} 26. Ne5 {[%emt 0:00:53]} f6 {[%emt 0:00:15]} 27. Nf3 {[%emt 0:00:56]} Rg3 {[%emt 0:00:19]} 28. Kd2 {[%emt 0:07:21]} Rhg8 {[%emt 0:01:27]} 29. Ne1 {[%emt 0:08:56]} Bxg2 {[%emt 0:00:52]} 30. Rf2 {[%emt 0:00:37]} Be4 {[%emt 0:00:08]} 31. Rgf1 $19 {[%emt 0:00:32]} f5 {[%emt 0:00:05]} 32. Nd3 {[%emt 0:01:01]} Bxd3 {[%emt 0:00:35]} 33. cxd3 {[%emt 0:00:06]} Rg2 {[%emt 0:00:03]} 34. Ke3 {[%emt 0:00:22]} Rxf2 {[%emt 0:00:34]} 35. Rxf2 {[%emt 0:00:05]} Kd6 {[%emt 0:00:55]} 36. Rc2 {[%emt 0:00:21]} Rg3+ {[%emt 0:02:32]} 37. Kf4 {[%emt 0:01:02]} Rg4+ {[%emt 0:00:39]} 38. Kf3 {[%emt 0:00:28]} Kd7 {[%emt 0:00:15]} 39. d4 {[%emt 0:01:41]} Rxd4 {[%emt 0:01:15]} 40. Rg2 {[%emt 0:00:07]} Rg4 {[%emt 0:00:09]} 41. Rxg4 {[%emt 0:03:00]} fxg4+ {[%emt 0:00:01]} 42. Kxg4 {[%emt 0:00:11]} Ke7 {[%emt 0:00:06]} 43. Kf4 {[%emt 0:00:08]} Kf6 {[%emt 0:00:01] Ke5+ Kxe5} 0-1

[Event "FRA-ch Youth U18 2018"]
[Site "Agen"]
[Date "2018.04.20"]
[Round "7"]
[White "Bauer, Elise"]
[Black "Salvador, Lucie"]
[Result "1-0"]
[ECO "C00"]
[WhiteElo "1489"]
[BlackElo "1955"]
[Annotator "NA"]
[PlyCount "105"]
[EventDate "2018.??.??"]
[EventType "swiss"]
[EventCountry "FRA"]
[SourceTitle "playchess.com"]
[Source "ChessBase"]
[SourceQuality "1"]
[TimeControl "5400+30"]

1. e4 {[%emt 0:00:44]} e6 {[%emt 0:00:04]} 2. d4 {[%emt 0:00:09]} d5 {[%emt 0:00:06]} 3. Bd3 {[%emt 0:00:06]} Nf6 {[%emt 0:01:26]} 4. e5 {[%emt 0:03:06]} Nfd7 {[%emt 0:00:51]} 5. c3 {[%emt 0:02:49]} c5 {[%emt 0:01:17]} 6. Be3 {[%emt 0:01:56]} Qb6 {[%emt 0:05:24]} 7. Qb3 {[%emt 0:06:45]} Qxb3 {[%emt 0:11:23]} 8. axb3 {[%emt 0:00:11]} cxd4 {[%emt 0:00:23]} 9. cxd4 {[%emt 0:05:24]} Nc6 {[%emt 0:03:07]} 10. Nc3 {[%emt 0:02:54]} Bb4 {[%emt 0:02:23]} 11. f4 {[%emt 0:04:37]} b6 {[%emt 0:08:33]} 12. Nf3 {[%emt 0:03:58]} Na5 {[%emt 0:13:26]} 13. Nd2 $11 {[%emt 0:03:21]} O-O {[%emt 0:08:10]} 14. O-O {[%emt 0:05:49]} f6 {[%emt 0:03:50]} 15. Ra4 {[%emt 0:13:38]} Be7 {[%emt 0:01:44]} 16. Nd1 {[%emt 0:02:42]} Nc6 {[%emt 0:08:37]} 17. Nc3 {[%emt 0:07:33]} Nb4 {[%emt 0:06:29]} 18. Be2 {[%emt 0:01:17]} Nb8 {[%emt 0:03:25]} 19. Rc1 {[%emt 0:06:17]} Bd7 {[%emt 0:02:48]} 20. Raa1 {[%emt 0:06:28]} N8c6 {[%emt 0:02:30]} 21. Nb5 {[%emt 0:05:31]} fxe5 {[%emt 0:05:02]} 22. fxe5 {[%emt 0:01:24]} Rf5 {[%emt 0:00:15]} 23. Bg4 {[%emt 0:01:24]} Bg5 {[%emt 0:00:26]} 24. Bxg5 {[%emt 0:04:57]} Rxg5 {[%emt 0:00:05]} 25. h3 {[%emt 0:00:33]} h5 {[%emt 0:01:28]} 26. Nf3 {[%emt 0:00:35]} Rg6 {[%emt 0:04:07]} 27. Bxh5 {[%emt 0:00:02]} Rh6 {[%emt 0:00:06]} 28. Bg4 {[%emt 0:00:15]} Nd3 {[%emt 0:04:35]} 29. Rc3 {[%emt 0:01:55]} Nf4 {[%emt 0:00:35]} 30. Kf2 {[%emt 0:00:31]} a5 {[%emt 0:01:05]} 31. Nd6 {[%emt 0:01:30]} Rf8 {[%emt 0:00:49]} 32. Rd1 {[%emt 0:02:08]} Nb4 {[%emt 0:00:40]} 33. Rd2 {[%emt 0:01:56]} Be8 {[%emt 0:00:42]} 34. Nxe8 {[%emt 0:01:24]} Rxe8 {[%emt 0:00:02]} 35. Ke3 {[%emt 0:00:38]} Ng6 {[%emt 0:00:58]} 36. Ng5 {[%emt 0:00:34]} Nh4 {[%emt 0:00:57]} 37. g3 {[%emt 0:01:11]} Nf5+ {[%emt 0:00:04]} 38. Bxf5 {[%emt 0:00:02]} exf5 {[%emt 0:00:05]} 39. Rf2 {[%emt 0:00:31]} g6 {[%emt 0:01:05]} 40. h4 {[%emt 0:00:29]} Kf8 {[%emt 0:00:26]} 41. Rc7 {[%emt 0:00:45]} Re7 {[%emt 0:00:14]} 42. Rc8+ {[%emt 0:00:51]} Kg7 {[%emt 0:00:07]} 43. Rb8 {[%emt 0:00:30]} Rh8 {[%emt 0:00:49]} 44. Rxb6 {[%emt 0:00:34]} Rc8 {[%emt 0:00:23]} 45. Rd2 {[%emt 0:00:59]} Rc1 {[%emt 0:00:50]} 46. Ne6+ {[%emt 0:00:23]} Kf7 {[%emt 0:00:22]} 47. Nf4 {[%emt 0:00:20]} Rg1 {[%emt 0:01:05]} 48. Rf6+ {[%emt 0:00:39]} Ke8 {[%emt 0:00:26]} 49. Rxg6 {[%emt 0:00:17]} Rc7 {[%emt 0:00:14]} 50. Rg8+ {[%emt 0:00:46]} Kf7 {[%emt 0:00:10]} 51. Rg5 {[%emt 0:00:36]} Ke7 {[%emt 0:00:38]} 52. Rg7+ {[%emt 0:00:30]} Kd8 {[%emt 0:00:03]} 53. Ne6+ 1-0

[Event "FRA-ch Youth U18 2018"]
[Site "Agen"]
[Date "2018.04.21"]
[Round "8"]
[White "Bressy, Theo"]
[Black "Heliot, Xabi"]
[Result "1-0"]
[ECO "A00"]
[WhiteElo "2116"]
[BlackElo "2160"]
[Annotator "NA"]
[PlyCount "87"]
[EventDate "2018.??.??"]
[EventType "swiss"]
[EventCountry "FRA"]
[SourceTitle "playchess.com"]
[Source "ChessBase"]
[SourceQuality "1"]
[TimeControl "5400+30"]

1. g3 {[%emt 0:00:00]} Nc6 {[%emt 0:00:17]} 2. Bg2 {[%emt 0:00:00]} d5 {[%emt 0:00:19]} 3. d3 {[%emt 0:00:07]} e5 {[%emt 0:01:34]} 4. Nd2 {[%emt 0:00:13]} Be6 {[%emt 0:05:08] A00: Irregular Openings} (4... Nf6 5. a3 a5 6. e4 Be7 7. Ngf3 O-O 8. O-O Re8 9. exd5 Nxd5 10. Re1 Bf8 11. Nc4 f6 12. Nh4 Be6 {0-1 (48) Svidler,P (2769)-Wang,H (2743) Stavanger 2013}) 5. h3 {[%emt 0:02:03]} Qd7 {[%emt 0:02:45]} 6. a3 {[%emt 0:03:00]} h5 {[%emt 0:09:04]} 7. b4 {[%emt 0:03:09]} h4 {[%emt 0:00:45]} 8. g4 $1 {[%emt 0:00:49]} Nce7 $146 {[%emt 0:15:59]} ({Predecessor:} 8... f5 9. gxf5 Bxf5 10. Bb2 O-O-O 11. c4 Be6 12. b5 {½-½ (46) Kokol,P (2324)-Suta,A (2093) Slovenia 2016}) 9. Nb3 {[%emt 0:12:09]} Ng6 {[%emt 0:00:24]} 10. e3 {[%emt 0:06:28]} Nh6 {[%emt 0:05:25]} 11. Bb2 {[%emt 0:01:59]} f5 {[%emt 0:02:11]} 12. gxf5 {[%emt 0:00:46]} Nxf5 {[%emt 0:02:03]} 13. Nf3 {[%emt 0:09:40]} d4 {[%emt 0:07:42]} 14. e4 {[%emt 0:17:32]} (14. exd4 $14 Bxb3 15. cxb3) 14... Nh6 {[%emt 0:08:56]} 15. Bc1 {[%emt 0:04:20]} Nf7 {[%emt 0:01:12]} 16. Ng5 {[%emt 0:05:06]} Nxg5 {[%emt 0:02:35]} 17. Bxg5 {[%emt 0:00:05]} Be7 {[%emt 0:04:26]} 18. Bxe7 {[%emt 0:00:36]} Qxe7 {[%emt 0:00:20]} 19. Nc5 {[%emt 0:02:37]} Bc8 {[%emt 0:01:20]} 20. Bf3 {[%emt 0:04:02]} b6 {[%emt 0:01:31]} 21. Nb3 {[%emt 0:03:43]} Qf6 {[%emt 0:05:06]} 22. Bg4 {[%emt 0:02:07]} O-O {[%emt 0:01:48]} 23. Rh2 {[%emt 0:00:58]} Nf4 {[%emt 0:06:07]} 24. Bxc8 {[%emt 0:00:33]} Raxc8 {[%emt 0:00:07]} 25. Qg4 {[%emt 0:00:19]} c5 {[%emt 0:00:47]} 26. bxc5 {[%emt 0:00:11]} bxc5 {[%emt 0:02:44]} 27. Nd2 {[%emt 0:00:22]} Rb8 {[%emt 0:00:06]} 28. Nc4 {[%emt 0:00:13]} Rb7 $17 {[%emt 0:00:39]} 29. f3 {[%emt 0:03:44]} Rfb8 {[%emt 0:00:48]} 30. Kf2 {[%emt 0:00:44]} Rb1 {[%emt 0:02:11]} 31. Rh1 {[%emt 0:00:22]} R1b2 {[%emt 0:05:10]} 32. Nxb2 {[%emt 0:04:38]} Rxb2 {[%emt 0:00:01]} 33. Rhb1 {[%emt 0:07:41]} Rxc2+ {[%emt 0:00:07]} 34. Kf1 {[%emt 0:00:14]} Nxd3 {[%emt 0:02:39]} 35. Rb8+ {[%emt 0:00:25]} Kf7 {[%emt 0:01:58]} 36. Rb7+ {[%emt 0:02:06]} Kg8 {[%emt 0:00:22]} 37. Rb8+ {[%emt 0:00:03]} Kf7 {[%emt 0:00:40]} 38. Qh5+ {[%emt 0:02:42]} Ke6 {[%emt 0:02:49]} 39. Qe8+ {[%emt 0:00:15]} Qe7 {[%emt 0:01:02]} 40. Qc6+ {[%emt 0:00:11]} Kf7 {[%emt 0:00:12]} 41. Rb7 {[%emt 0:00:09]} c4 {[%emt 0:01:02]} 42. Rxe7+ {[%emt 0:00:18]} Kxe7 {[%emt 0:00:01]} 43. Rb1 {[%emt 0:00:17]} Nb2 {[%emt 0:00:32]} 44. Qb7+ {[%emt 0:00:04]} 1-0

[Event "FRA-ch Youth U18 2018"]
[Site "Agen"]
[Date "2018.04.21"]
[Round "8"]
[White "Lomandong, Noela-Joyce"]
[Black "Salvador, Lucie"]
[Result "1-0"]
[ECO "A48"]
[WhiteElo "2053"]
[BlackElo "1955"]
[Annotator "NA"]
[PlyCount "75"]
[EventDate "2018.??.??"]
[EventType "swiss"]
[EventCountry "FRA"]
[SourceTitle "playchess.com"]
[Source "ChessBase"]
[SourceQuality "1"]
[TimeControl "5400+30"]

1. Nf3 {[%emt 0:00:00]} Nf6 {[%emt 0:00:10]} 2. d4 {[%emt 0:00:29]} g6 {[%emt 0:00:23]} 3. b3 {[%emt 0:00:41]} Bg7 {[%emt 0:02:12]} 4. Bb2 {[%emt 0:00:08]} d5 {[%emt 0:03:33]} 5. e3 {[%emt 0:00:15]} O-O {[%emt 0:00:48]} 6. Bd3 {[%emt 0:00:22]} c5 {[%emt 0:05:00]} 7. O-O {[%emt 0:09:41] D04: Colle System} Nc6 {[%emt 0:04:22]} (7... b6 8. dxc5 bxc5 9. c4 e6 10. Nc3 Bb7 11. Na4 Nbd7 12. cxd5 exd5 13. Qe2 Re8 14. Rac1 Rc8 {½-½ (53) Nakamura,H (2786)-Caruana,F (2802) chess.com INT 2017}) 8. a3 {[%emt 0:02:03] LiveBook: 4 Games} Bg4 {[%emt 0:08:58]} 9. dxc5 {[%emt 0:09:40]} a5 {[%emt 0:17:20]} 10. h3 $146 {[%emt 0:08:24]} ({Predecessor:} 10. Be2 Ne4 11. Bxg7 Kxg7 12. h3 Be6 13. Nd4 {1-0 (48) Lasitha,S (1798)-Dissanayake,R (1667) Narahenpita 2017}) 10... Bxf3 {[%emt 0:01:21]} 11. Qxf3 {[%emt 0:02:02]} e5 {[%emt 0:03:01]} 12. Bb5 {[%emt 0:05:51]} Qe7 {[%emt 0:07:20]} 13. Qe2 {[%emt 0:08:58]} Ne4 {[%emt 0:00:00]} 14. a4 {[%emt 0:08:57]} Rac8 {[%emt 0:15:39]} 15. Nd2 {[%emt 0:14:36]} Nxc5 {[%emt 0:05:13]} 16. Rac1 {[%emt 0:06:50]} Rc7 {[%emt 0:10:02]} 17. Ba3 {[%emt 0:03:26]} b6 18. c3 {[%emt 0:02:32]} Rfc8 {[%emt 0:04:53]} 19. b4 {[%emt 0:03:30]} Nd7 {[%emt 0:02:13]} 20. Bxc6 {[%emt 0:01:49]} Rxc6 {[%emt 0:00:14]} 21. b5 {[%emt 0:00:05]} Qxa3 {[%emt 0:03:10]} 22. bxc6 {[%emt 0:00:01]} Rxc6 {[%emt 0:01:24]} 23. Qb5 {[%emt 0:00:28]} Rc7 {[%emt 0:01:37]} 24. Nb3 {[%emt 0:02:09]} Qd6 {[%emt 0:01:16]} 25. Rfd1 {[%emt 0:00:25]} Nf6 {[%emt 0:01:13]} 26. c4 {[%emt 0:00:38]} d4 {[%emt 0:01:33]} 27. exd4 $18 {[%emt 0:00:25]} exd4 {[%emt 0:00:30]} 28. Rxd4 {[%emt 0:00:23]} Qe7 {[%emt 0:00:30]} 29. Rcd1 {[%emt 0:02:27]} Ne4 {[%emt 0:00:32]} 30. Rd8+ {[%emt 0:00:41]} Bf8 {[%emt 0:00:04]} 31. Qe8 {[%emt 0:01:10]} Qxe8 {[%emt 0:00:57]} 32. Rxe8 {[%emt 0:00:02]} Kg7 {[%emt 0:00:12]} 33. Rxe4 {[%emt 0:00:05]} Bb4 {[%emt 0:00:32]} 34. Rd8 {[%emt 0:00:28]} Rc6 {[%emt 0:00:19]} 35. Rd7 {[%emt 0:00:16]} Rf6 {[%emt 0:00:16]} 36. Nd4 {[%emt 0:01:19]} Kh6 {[%emt 0:00:30]} 37. g4 {[%emt 0:00:34]} Kg5 {[%emt 0:00:30]} 38. Rd5+ 1-0

[Event "FRA-ch Youth U18 2018"]
[Site "Agen"]
[Date "2018.04.21"]
[Round "8"]
[White "Rollot, Florence"]
[Black "El Barbry, Sarah"]
[Result "1-0"]
[ECO "A13"]
[WhiteElo "2042"]
[BlackElo "1750"]
[Annotator "NA"]
[PlyCount "69"]
[EventDate "2018.??.??"]
[EventType "swiss"]
[EventCountry "FRA"]
[SourceTitle "playchess.com"]
[Source "ChessBase"]
[SourceQuality "1"]
[TimeControl "5400+30"]

1. c4 {[%emt 0:00:00]} e6 {[%emt 0:07:50]} 2. g3 {[%emt 0:00:08]} Nf6 {[%emt 0:00:07]} 3. Bg2 {[%emt 0:00:09]} d5 4. Qc2 {[%emt 0:00:08]} c6 {[%emt 0:01:29]} 5. Nf3 {[%emt 0:00:47]} Bd6 {[%emt 0:00:11]} 6. O-O {[%emt 0:00:48]} O-O {[%emt 0:00:10]} 7. d4 {[%emt 0:01:59]} Nbd7 {[%emt 0:00:20]} 8. Nbd2 {[%emt 0:01:35]} Re8 {[%emt 0:13:50]} 9. e4 {[%emt 0:06:30]} dxe4 {[%emt 0:06:31]} 10. Nxe4 {[%emt 0:01:11]} Nxe4 {[%emt 0:00:31]} 11. Qxe4 {[%emt 0:00:08] LiveBook: 28 Games} h6 {[%emt 0:00:09]} ({Black should try} 11... e5 $11) 12. Rd1 {[%emt 0:11:36] E01: Catalan: Early deviations} (12. Bf4 Nf6 13. Qe3 Qc7 14. Bxd6 Qxd6 15. Ne5 Bd7 16. Rad1 Rad8 17. f4 Nh7 18. Rd3 Qc7 19. Rfd1 Re7 20. d5 exd5 21. cxd5 cxd5 22. Bxd5 Rde8 23. Qxa7 Rxe5 24. Bxf7+ {1-0 (24) Zubov,A (2630)-Abelgas,R (2316) Olongapo City 2015}) 12... Nf6 {[%emt 0:06:36]} 13. Qe1 $146 {[%emt 0:08:44]} ({Predecessor:} 13. Qe2 Qc7 14. b3 b6 15. Bb2 Bb7 16. Ne5 c5 17. Bxb7 Qxb7 18. Ng4 Nxg4 19. Qxg4 cxd4 20. Qxd4 {½-½ (34) Vardakas,G (1932)-Spyropoulos,N (2229) Achaia 2017}) 13... Qe7 {[%emt 0:07:04]} 14. Ne5 {[%emt 0:06:27]} Rb8 {[%emt 0:01:46]} 15. Rb1 {[%emt 0:03:45]} Nd7 {[%emt 0:03:30]} 16. b4 {[%emt 0:04:59]} Nxe5 {[%emt 0:06:34]} 17. dxe5 {[%emt 0:00:48]} Bc7 {[%emt 0:00:02]} 18. Qc3 $16 {[%emt 0:06:57]} c5 {[%emt 0:04:37]} 19. bxc5 {[%emt 0:02:16]} Qxc5 {[%emt 0:01:24]} 20. Rb5 {[%emt 0:00:20]} Qe7 {[%emt 0:04:29]} 21. Ba3 {[%emt 0:03:00]} Qg5 {[%emt 0:00:52]} 22. h4 {[%emt 0:03:24]} Qf5 {[%emt 0:02:36]} 23. Bd6 {[%emt 0:02:18]} Rd8 {[%emt 0:15:43]} 24. Rd3 {[%emt 0:04:40]} Bxd6 {[%emt 0:04:28]} 25. exd6 {[%emt 0:00:24]} Qf6 {[%emt 0:00:57]} 26. Qd2 {[%emt 0:01:29]} b6 {[%emt 0:02:00]} 27. d7 {[%emt 0:00:29]} Ba6 {[%emt 0:02:07]} 28. Rb4 {[%emt 0:00:16]} Bb7 {[%emt 0:03:07]} 29. Bxb7 {[%emt 0:00:55]} Rxb7 {[%emt 0:00:05]} 30. c5 {[%emt 0:00:21]} e5 {[%emt 0:03:37]} 31. Rd6 {[%emt 0:00:25]} Qf3 {[%emt 0:01:02]} 32. c6 {[%emt 0:07:36]} Rc7 {[%emt 0:00:00]} 33. Qc1 {[%emt 0:00:18]} Qe2 {[%emt 0:00:57]} 34. Ra4 {[%emt 0:01:10]} a6 {[%emt 0:01:10]} 35. Qb1 {[%emt 0:01:30]} 1-0

[Event "FRA-ch Youth U18 2018"]
[Site "Agen"]
[Date "2018.04.21"]
[Round "8"]
[White "Belluire, Beatrice"]
[Black "Bauer, Elise"]
[Result "1/2-1/2"]
[ECO "C50"]
[WhiteElo "1818"]
[BlackElo "1489"]
[Annotator "NA"]
[PlyCount "111"]
[EventDate "2018.??.??"]
[EventType "swiss"]
[EventCountry "FRA"]
[SourceTitle "playchess.com"]
[Source "ChessBase"]
[SourceQuality "1"]
[TimeControl "5400+30"]

1. e4 {[%emt 0:00:00]} e5 {[%emt 0:00:02]} 2. Nf3 {[%emt 0:00:00]} Nc6 {[%emt 0:00:22]} 3. Bc4 {[%emt 0:00:00]} Bc5 {[%emt 0:00:41]} 4. O-O {[%emt 0:00:12]} Nf6 {[%emt 0:01:50]} 5. d3 {[%emt 0:00:04]} d6 {[%emt 0:00:51]} 6. Nc3 {[%emt 0:00:13]} Bg4 {[%emt 0:02:36]} 7. h3 {[%emt 0:00:30]} Bh5 {[%emt 0:00:50]} 8. Be3 {[%emt 0:04:41]} Nd4 {[%emt 0:03:35]} 9. g4 {[%emt 0:00:37]} Bg6 {[%emt 0:03:05]} 10. Bxd4 {[%emt 0:02:43]} exd4 {[%emt 0:06:34]} 11. Ne2 {[%emt 0:00:40]} d5 {[%emt 0:02:00]} 12. exd5 {[%emt 0:02:54]} Nxd5 {[%emt 0:02:39]} 13. Bxd5 {[%emt 0:16:53]} Qxd5 {[%emt 0:01:27]} 14. Nf4 {[%emt 0:00:01]} Qd6 $16 {[%emt 0:04:26]} 15. Qe2+ {[%emt 0:12:19]} Kf8 {[%emt 0:05:50]} 16. Qe5 {[%emt 0:00:51]} Re8 {[%emt 0:13:29]} 17. Qxd6+ {[%emt 0:01:04]} Bxd6 {[%emt 0:01:07]} 18. Nxg6+ {[%emt 0:00:18]} hxg6 {[%emt 0:00:01]} 19. Kg2 {[%emt 0:00:41]} c5 {[%emt 0:01:26]} 20. Rfe1 {[%emt 0:04:12]} f6 {[%emt 0:06:28]} 21. Rxe8+ {[%emt 0:01:33]} Kxe8 {[%emt 0:00:03]} 22. Re1+ {[%emt 0:00:14]} Kd7 {[%emt 0:01:24]} 23. Re4 {[%emt 0:03:00]} g5 {[%emt 0:09:12]} 24. Ng1 {[%emt 0:08:47]} b6 {[%emt 0:03:01]} 25. Kf3 {[%emt 0:08:38]} Bh2 {[%emt 0:02:31]} 26. Re1 {[%emt 0:10:41]} Bxg1 {[%emt 0:01:15]} 27. Rxg1 {[%emt 0:00:01]} Rxh3+ {[%emt 0:00:19]} 28. Kg2 {[%emt 0:00:07]} Rh8 {[%emt 0:01:23]} 29. Kf3 {[%emt 0:00:21]} Kd6 {[%emt 0:01:22]} 30. Re1 {[%emt 0:02:54]} g6 {[%emt 0:01:02]} 31. Rg1 {[%emt 0:00:55]} a6 {[%emt 0:04:12]} 32. a4 {[%emt 0:00:16]} Kd5 {[%emt 0:02:10]} 33. b3 {[%emt 0:02:27]} b5 {[%emt 0:01:29]} 34. axb5 {[%emt 0:00:22]} axb5 {[%emt 0:00:31]} 35. Ra1 {[%emt 0:00:09]} Rh3+ {[%emt 0:03:29]} 36. Ke2 {[%emt 0:06:21]} Rh4 {[%emt 0:01:23]} 37. Ra6 {[%emt 0:00:33]} Rxg4 {[%emt 0:03:40]} 38. Rxf6 {[%emt 0:00:09]} Rg1 {[%emt 0:00:36]} 39. Rxg6 {[%emt 0:00:35]} g4 {[%emt 0:00:19]} 40. Rb6 {[%emt 0:02:17]} b4 {[%emt 0:00:27]} 41. Rg6 {[%emt 0:00:11]} Rc1 {[%emt 0:01:51]} 42. Rg5+ {[%emt 0:00:25]} Kc6 {[%emt 0:00:36]} 43. Kd2 {[%emt 0:00:29]} Rf1 {[%emt 0:02:39]} 44. Ke2 {[%emt 0:00:16]} Rg1 {[%emt 0:01:11]} 45. Rg6+ {[%emt 0:00:30]} Kd5 {[%emt 0:00:29]} 46. Rg5+ {[%emt 0:00:01]} Kc6 {[%emt 0:00:01]} 47. Rg8 {[%emt 0:00:50]} Kd7 {[%emt 0:02:00]} 48. Rg6 {[%emt 0:00:07]} Kc7 {[%emt 0:01:25]} 49. Kd2 {[%emt 0:00:23]} Rg2 {[%emt 0:00:51]} 50. Ke2 {[%emt 0:00:37]} Rg1 {[%emt 0:00:25]} 51. Kd2 {[%emt 0:03:05]} Rg2 {[%emt 0:01:56]} 52. Ke1 {[%emt 0:00:03]} Rg1+ {[%emt 0:00:26]} 53. Ke2 {[%emt 0:00:01]} Rc1 {[%emt 0:00:42]} 54. Kd2 Rf1 55. Rf6 Rg1 56. Ke2 1/2-1/2

[Event "FRA-ch Youth U18 2018"]
[Site "Agen"]
[Date "2018.04.21"]
[Round "8"]
[White "Goeau, Aurelice"]
[Black "Milroy, Melena"]
[Result "0-1"]
[ECO "B01"]
[WhiteElo "1573"]
[BlackElo "1718"]
[Annotator "NA"]
[PlyCount "90"]
[EventDate "2018.??.??"]
[EventType "swiss"]
[EventCountry "FRA"]
[SourceTitle "playchess.com"]
[Source "ChessBase"]
[SourceQuality "1"]
[TimeControl "5400+30"]

1. e4 {[%emt 0:00:00]} d5 {[%emt 0:00:03]} 2. exd5 {[%emt 0:00:00]} Qxd5 {[%emt 0:00:03]} 3. Nc3 {[%emt 0:00:00]} Qa5 {[%emt 0:00:06]} 4. g3 {[%emt 0:00:13]} Nc6 {[%emt 0:04:33]} 5. Bg2 {[%emt 0:00:40]} Bd7 {[%emt 0:03:20]} 6. Nf3 {[%emt 0:00:27]} O-O-O {[%emt 0:00:11]} 7. O-O {[%emt 0:00:16]} Qh5 {[%emt 0:00:29]} 8. d3 {[%emt 0:09:48]} e5 {[%emt 0:13:42]} 9. Re1 {[%emt 0:08:52]} Bd6 {[%emt 0:00:54]} 10. Ne4 {[%emt 0:08:17]} Bg4 {[%emt 0:04:30]} 11. c3 {[%emt 0:13:02]} f5 {[%emt 0:01:38]} 12. h3 {[%emt 0:18:12]} Bxf3 {[%emt 0:05:30]} 13. Bxf3 {[%emt 0:00:10]} Qe8 {[%emt 0:00:43]} 14. Nxd6+ {[%emt 0:01:08]} Rxd6 {[%emt 0:00:19]} 15. Qc2 {[%emt 0:05:52]} Re6 {[%emt 0:08:05]} 16. Bd2 {[%emt 0:03:18]} Nf6 {[%emt 0:01:29]} 17. Bg2 {[%emt 0:00:45]} h6 {[%emt 0:03:17]} 18. b4 {[%emt 0:06:40]} g5 {[%emt 0:08:10]} 19. d4 {[%emt 0:05:58]} e4 {[%emt 0:02:08]} 20. b5 {[%emt 0:01:51]} Nd8 {[%emt 0:06:54]} 21. c4 {[%emt 0:02:24]} Nh7 {[%emt 0:05:37]} 22. Qc1 {[%emt 0:08:19]} Rg8 {[%emt 0:03:44]} 23. a4 {[%emt 0:03:12]} h5 {[%emt 0:01:01]} 24. a5 {[%emt 0:01:14]} h4 {[%emt 0:01:44]} 25. g4 {[%emt 0:00:46]} fxg4 {[%emt 0:01:47]} 26. hxg4 {[%emt 0:00:09]} Nf7 {[%emt 0:06:33]} 27. a6 {[%emt 0:00:40]} b6 {[%emt 0:00:40]} 28. Rb1 {[%emt 0:00:32]} Kb8 {[%emt 0:00:36]} 29. d5 {[%emt 0:00:44]} Re7 {[%emt 0:02:14]} 30. Bb4 Re5 {[%emt 0:04:40]} 31. Bc3 {[%emt 0:01:08]} Re7 {[%emt 0:01:49]} 32. Bb4 {[%emt 0:00:19]} Re5 {[%emt 0:03:51]} 33. Bc3 {[%emt 0:00:07]} Qd7 {[%emt 0:00:07]} 34. Bxe5 {[%emt 0:00:43]} Nxe5 {[%emt 0:00:12]} 35. Rxe4 {[%emt 0:00:06]} Nxg4 {[%emt 0:00:13]} 36. Bh3 {[%emt 0:01:02]} Nhf6 {[%emt 0:00:21]} 37. Re1 {[%emt 0:00:47]} Qd6 {[%emt 0:00:19]} 38. Kf1 {[%emt 0:00:37]} Qh2 {[%emt 0:00:52]} 39. Bxg4 {[%emt 0:00:11]} Nxg4 {[%emt 0:00:14]} 40. Rb2 {[%emt 0:00:28]} Rf8 {[%emt 0:01:56]} 41. Qd2 {[%emt 0:00:46]} Qh1+ {[%emt 0:00:28]} 42. Ke2 {[%emt 0:00:27]} Qf3+ {[%emt 0:00:06]} 43. Kf1 {[%emt 0:00:25]} h3 {[%emt 0:01:34]} 44. Qd1 {[%emt 0:00:52]} Nh2+ {[%emt 0:00:13]} 45. Kg1 {[%emt 0:00:07]} Qg2# 0-1